[Event "*** Titled Tuesday Blitz"]
[Site "Chess.com"]
[Date "2021.02.09"]
[Round "4"]
[White "johnathan113"]
[Black "AwareIdea"]
[Result "1/2-1/2"]
[WhiteElo "2609"]
[BlackElo "2472"]
[TimeControl "180+1"]
[EndTime "10:40:03 PST"]
[Termination "Game drawn - insufficient material"]

1. e4 {[%clk 0:02:48.7]} 1... e5 {[%clk 0:02:59.8]} 2. Nf3 {[%clk 0:02:46.9]}
2... Nc6 {[%clk 0:02:59.5]} 3. d4 {[%clk 0:02:47.5]} 3... exd4 {[%clk
0:02:59.3]} 4. Nxd4 {[%clk 0:02:48.4]} 4... Nf6 {[%clk 0:02:59.1]} 5. Nxc6
{[%clk 0:02:48.7]} 5... bxc6 {[%clk 0:03:00]} 6. e5 {[%clk 0:02:49.3]} 6... Qe7
{[%clk 0:02:59.6]} 7. Qe2 {[%clk 0:02:49.8]} 7... Nd5 {[%clk 0:03:00.2]} 8. c4
{[%clk 0:02:50.1]} 8... Nb6 {[%clk 0:03:00.8]} 9. Nc3 {[%clk 0:02:49.8]} 9...
Qe6 {[%clk 0:03:01.2]} 10. Qe4 {[%clk 0:02:49.1]} 10... Bb4 {[%clk 0:03:01.3]}
11. Bd2 {[%clk 0:02:47.7]} 11... a5 {[%clk 0:03:01.3]} 12. Bd3 {[%clk
0:02:29.4]} 12... Bb7 {[%clk 0:02:33.1]} 13. O-O {[%clk 0:02:23.8]} 13... O-O-O
{[%clk 0:02:31.7]} 14. a3 {[%clk 0:02:23.3]} 14... c5 {[%clk 0:02:24.3]} 15. Qe3
{[%clk 0:02:13.5]} 15... Bxc3 {[%clk 0:02:11.2]} 16. Bxc3 {[%clk 0:02:14.4]}
16... Nxc4 {[%clk 0:01:44.2]} 17. Qxc5 {[%clk 0:02:11.2]} 17... Qd5 {[%clk
0:01:29.1]} 18. Qxd5 {[%clk 0:02:08.6]} 18... Bxd5 {[%clk 0:01:30]} 19. b3
{[%clk 0:02:06.8]} 19... Nb6 {[%clk 0:01:26.3]} 20. Bxa5 {[%clk 0:02:07.3]}
20... Rde8 {[%clk 0:01:18.6]} 21. f4 {[%clk 0:02:05.7]} 21... Bxb3 {[%clk
0:01:03.2]} 22. Bxb6 {[%clk 0:02:03.9]} 22... cxb6 {[%clk 0:01:03.5]} 23. Rab1
{[%clk 0:02:04.1]} 23... Bd5 {[%clk 0:01:03.4]} 24. Rxb6 {[%clk 0:02:02.2]}
24... Kc7 {[%clk 0:01:02.8]} 25. Rb4 {[%clk 0:02:01]} 25... Ra8 {[%clk
0:00:58.7]} 26. Rc1+ {[%clk 0:01:59.9]} 26... Kd8 {[%clk 0:00:55]} 27. a4 {[%clk
0:02:00.8]} 27... Ke7 {[%clk 0:00:52.8]} 28. Be4 {[%clk 0:01:59.1]} 28... Bxe4
{[%clk 0:00:49.2]} 29. Rxe4 {[%clk 0:02:00]} 29... Rhc8 {[%clk 0:00:48.5]} 30.
Rd1 {[%clk 0:01:57.8]} 30... Rc2 {[%clk 0:00:45.1]} 31. Red4 {[%clk 0:01:55.8]}
31... Ra7 {[%clk 0:00:45.3]} 32. h3 {[%clk 0:01:52.9]} 32... Ra2 {[%clk
0:00:45]} 33. Kh2 {[%clk 0:01:43]} 33... R2xa4 {[%clk 0:00:44.5]} 34. Kg3 {[%clk
0:01:42.5]} 34... Rxd4 {[%clk 0:00:42.4]} 35. Rxd4 {[%clk 0:01:43.4]} 35... g6
{[%clk 0:00:38.9]} 36. Kh4 {[%clk 0:01:42.6]} 36... h6 {[%clk 0:00:38.5]} 37. g4
{[%clk 0:01:42.4]} 37... Ra3 {[%clk 0:00:37.4]} 38. Rb4 {[%clk 0:01:11.6]} 38...
Rf3 {[%clk 0:00:35.2]} 39. g5 {[%clk 0:00:55.8]} 39... h5 {[%clk 0:00:31.4]} 40.
Rd4 {[%clk 0:00:56.3]} 40... Ke6 {[%clk 0:00:22]} 41. Rd6+ {[%clk 0:00:55.8]}
41... Ke7 {[%clk 0:00:20.6]} 42. Rf6 {[%clk 0:00:56]} 42... Re3 {[%clk 0:00:19]}
43. f5 {[%clk 0:00:40.7]} 43... Re4+ {[%clk 0:00:15.7]} 44. Kg3 {[%clk
0:00:41.2]} 44... Rxe5 {[%clk 0:00:15.8]} 45. fxg6 {[%clk 0:00:14.3]} 45...
Rxg5+ {[%clk 0:00:16.7]} 46. Kh4 {[%clk 0:00:14.8]} 46... Kxf6 {[%clk 0:00:07]}
47. gxf7 {[%clk 0:00:15.5]} 47... Kxf7 {[%clk 0:00:07.3]} 48. Kxg5 {[%clk
0:00:16.4]} 48... d5 {[%clk 0:00:07.8]} 49. Kxh5 {[%clk 0:00:17.3]} 49... d4
{[%clk 0:00:06.3]} 50. Kg4 {[%clk 0:00:18.2]} 50... d3 {[%clk 0:00:07.2]} 51.
Kf3 {[%clk 0:00:19.1]} 51... d2 {[%clk 0:00:07.8]} 52. Ke2 {[%clk 0:00:19.8]}
52... Kg6 {[%clk 0:00:08.7]} 53. Kxd2 {[%clk 0:00:20.4]} 53... Kh5 {[%clk
0:00:09.6]} 54. Ke2 {[%clk 0:00:21.3]} 54... Kh4 {[%clk 0:00:10.5]} 55. Kf3
{[%clk 0:00:22.2]} 55... Kxh3 {[%clk 0:00:11.4]} 1/2-1/2

[Event "*** Titled Tuesday Blitz"]
[Site "Chess.com"]
[Date "2021.02.09"]
[Round "4"]
[White "UCantHandleDenker"]
[Black "sakkikuska"]
[Result "1-0"]
[WhiteElo "2616"]
[BlackElo "2461"]
[TimeControl "180+1"]
[EndTime "10:40:03 PST"]
[Termination "UCantHandleDenker won on time"]

1. Nf3 {[%clk 0:03:00.9]} 1... Nf6 {[%clk 0:02:57.8]} 2. d3 {[%clk 0:03:01.8]}
2... g6 {[%clk 0:02:58.2]} 3. g3 {[%clk 0:03:02.2]} 3... Bg7 {[%clk 0:02:58.6]}
4. Bg2 {[%clk 0:03:02.8]} 4... O-O {[%clk 0:02:58.7]} 5. O-O {[%clk 0:03:03.4]}
5... d6 {[%clk 0:02:57.7]} 6. Nbd2 {[%clk 0:03:03.9]} 6... c5 {[%clk 0:02:53.7]}
7. e4 {[%clk 0:03:04.4]} 7... Nc6 {[%clk 0:02:54]} 8. Re1 {[%clk 0:03:04.1]}
8... b6 {[%clk 0:02:53.9]} 9. a4 {[%clk 0:03:02.7]} 9... Bb7 {[%clk 0:02:54]}
10. Nc4 {[%clk 0:03:02.5]} 10... Nd7 {[%clk 0:02:52.3]} 11. h4 {[%clk
0:03:01.9]} 11... Nde5 {[%clk 0:02:52]} 12. Ncxe5 {[%clk 0:02:43.8]} 12... Nxe5
{[%clk 0:02:52.8]} 13. h5 {[%clk 0:02:44.3]} 13... Qd7 {[%clk 0:02:44.7]} 14. h6
{[%clk 0:02:43.3]} 14... Bh8 {[%clk 0:02:34.3]} 15. Nh2 {[%clk 0:02:43]} 15...
f5 {[%clk 0:02:26.1]} 16. f4 {[%clk 0:02:36.1]} 16... Ng4 {[%clk 0:01:52.1]} 17.
Nxg4 {[%clk 0:02:15.8]} 17... fxg4 {[%clk 0:01:53]} 18. c3 {[%clk 0:02:12.5]}
18... e5 {[%clk 0:01:52.5]} 19. Be3 {[%clk 0:02:07.6]} 19... Rae8 {[%clk
0:01:39.7]} 20. Qb3+ {[%clk 0:02:05.2]} 20... Qf7 {[%clk 0:01:39]} 21. Qxf7+
{[%clk 0:02:02.6]} 21... Rxf7 {[%clk 0:01:39.9]} 22. a5 {[%clk 0:02:02.8]} 22...
b5 {[%clk 0:01:37.7]} 23. a6 {[%clk 0:02:02.7]} 23... Bc6 {[%clk 0:01:36.3]} 24.
Rac1 {[%clk 0:01:46.9]} 24... Rb8 {[%clk 0:01:13.8]} 25. b4 {[%clk 0:01:46]}
25... c4 {[%clk 0:01:09.1]} 26. dxc4 {[%clk 0:01:42.2]} 26... bxc4 {[%clk
0:01:09.8]} 27. Rcd1 {[%clk 0:01:40.2]} 27... Rd7 {[%clk 0:01:06.3]} 28. f5
{[%clk 0:01:31.9]} 28... gxf5 {[%clk 0:01:03.4]} 29. exf5 {[%clk 0:01:32]} 29...
Bxg2 {[%clk 0:00:59.6]} 30. Kxg2 {[%clk 0:01:32.9]} 30... d5 {[%clk 0:00:59.2]}
31. Bc5 {[%clk 0:01:26.7]} 31... d4 {[%clk 0:00:50.7]} 32. Re4 {[%clk
0:01:24.7]} 32... Rbd8 {[%clk 0:00:49.7]} 33. Rxg4+ {[%clk 0:01:24]} 33... Kf7
{[%clk 0:00:48.8]} 34. Re4 {[%clk 0:01:18.4]} 34... Bf6 {[%clk 0:00:45.5]} 35.
g4 {[%clk 0:01:15.8]} 35... dxc3 {[%clk 0:00:23.2]} 36. Rxd7+ {[%clk 0:01:14.2]}
36... Rxd7 {[%clk 0:00:24.1]} 37. Rxc4 {[%clk 0:01:14.7]} 37... Rd2+ {[%clk
0:00:20.7]} 38. Kf3 {[%clk 0:01:11.1]} 38... c2 {[%clk 0:00:19.5]} 39. Bxa7
{[%clk 0:01:05.8]} 39... Bg5 {[%clk 0:00:17.5]} 40. Rc7+ {[%clk 0:00:41.8]}
40... Ke8 {[%clk 0:00:11.7]} 41. f6 {[%clk 0:00:24]} 41... Rd3+ {[%clk
0:00:11.3]} 42. Ke4 {[%clk 0:00:21.7]} 42... Ra3 {[%clk 0:00:05.1]} 43. f7+
{[%clk 0:00:20.6]} 43... Kd8 {[%clk 0:00:02.8]} 44. f8=Q+ {[%clk 0:00:17.4]}
44... Kxc7 {[%clk 0:00:02.9]} 45. Qc5+ {[%clk 0:00:17.3]} 45... Kd7 {[%clk
0:00:02.9]} 46. Qxc2 {[%clk 0:00:15.7]} 46... Rxa6 {[%clk 0:00:02.4]} 47. Bc5
{[%clk 0:00:13.3]} 1-0

[Event "*** Titled Tuesday Blitz"]
[Site "Chess.com"]
[Date "2021.02.09"]
[Round "4"]
[White "TregubovP"]
[Black "Fortitudine"]
[Result "1-0"]
[WhiteElo "2599"]
[BlackElo "2330"]
[TimeControl "180+1"]
[EndTime "10:40:04 PST"]
[Termination "TregubovP won by resignation"]

1. e4 {[%clk 0:03:00.9]} 1... c5 {[%clk 0:02:59.3]} 2. Nf3 {[%clk 0:03:00.8]}
2... d6 {[%clk 0:02:59.6]} 3. c3 {[%clk 0:02:59.7]} 3... Nf6 {[%clk 0:02:59.3]}
4. Be2 {[%clk 0:03:00.1]} 4... Nbd7 {[%clk 0:02:58.2]} 5. Qc2 {[%clk 0:02:54.4]}
5... g6 {[%clk 0:02:55.2]} 6. d4 {[%clk 0:02:53.2]} 6... cxd4 {[%clk 0:02:52.2]}
7. cxd4 {[%clk 0:02:52.9]} 7... e5 {[%clk 0:02:45.6]} 8. Nc3 {[%clk 0:02:48.7]}
8... Bg7 {[%clk 0:02:44.8]} 9. O-O {[%clk 0:02:47.7]} 9... O-O {[%clk
0:02:44.5]} 10. Rd1 {[%clk 0:02:45.5]} 10... exd4 {[%clk 0:02:27.6]} 11. Nxd4
{[%clk 0:02:40.7]} 11... a6 {[%clk 0:02:21]} 12. Bf4 {[%clk 0:02:36.7]} 12...
Qe7 {[%clk 0:02:03.3]} 13. Nf3 {[%clk 0:02:17.4]} 13... Ne5 {[%clk 0:01:57.5]}
14. Nxe5 {[%clk 0:01:59]} 14... dxe5 {[%clk 0:01:57.4]} 15. Bg5 {[%clk
0:01:59.6]} 15... Be6 {[%clk 0:01:49.9]} 16. Nd5 {[%clk 0:01:59.5]} 16... Bxd5
{[%clk 0:01:50.2]} 17. exd5 {[%clk 0:01:59.7]} 17... Qd6 {[%clk 0:01:38.9]} 18.
Qb3 {[%clk 0:01:59.5]} 18... Ne4 {[%clk 0:01:22.6]} 19. Be3 {[%clk 0:01:54.9]}
19... Nc5 {[%clk 0:01:11.3]} 20. Qa3 {[%clk 0:01:49.3]} 20... b6 {[%clk
0:01:07]} 21. Rac1 {[%clk 0:01:49.1]} 21... Rfc8 {[%clk 0:01:02.5]} 22. b4
{[%clk 0:01:15.4]} 22... Ne4 {[%clk 0:00:57.3]} 23. Rxc8+ {[%clk 0:01:14.7]}
23... Rxc8 {[%clk 0:00:57.8]} 24. Qxa6 {[%clk 0:01:12.5]} 24... Rb8 {[%clk
0:00:52.6]} 25. Rc1 {[%clk 0:01:06.5]} 25... Bf8 {[%clk 0:00:44.6]} 26. Qc4
{[%clk 0:00:58.1]} 26... Qxb4 {[%clk 0:00:37.3]} 27. Qxb4 {[%clk 0:00:56.7]}
27... Bxb4 {[%clk 0:00:38.2]} 28. Rc4 {[%clk 0:00:52.3]} 28... Nc3 {[%clk
0:00:30.7]} 29. Rxb4 {[%clk 0:00:43.2]} 29... Nxe2+ {[%clk 0:00:30.7]} 30. Kf1
{[%clk 0:00:43.8]} 30... Nc3 {[%clk 0:00:24.4]} 31. d6 {[%clk 0:00:44.1]} 31...
Nd5 {[%clk 0:00:19]} 32. Rb5 {[%clk 0:00:43.8]} 32... Nxe3+ {[%clk 0:00:18.4]}
33. fxe3 {[%clk 0:00:44.3]} 33... Kf8 {[%clk 0:00:19]} 34. Rxe5 {[%clk 0:00:43]}
34... Rd8 {[%clk 0:00:16.5]} 35. Rd5 {[%clk 0:00:42.3]} 35... Ke8 {[%clk
0:00:17]} 36. e4 {[%clk 0:00:33.8]} 36... f6 {[%clk 0:00:17.3]} 37. e5 {[%clk
0:00:33.4]} 37... fxe5 {[%clk 0:00:18.2]} 38. Rxe5+ {[%clk 0:00:33.7]} 38... Kf8
{[%clk 0:00:18.7]} 39. Re6 {[%clk 0:00:32.7]} 39... Ra8 {[%clk 0:00:16.3]} 40.
d7 {[%clk 0:00:30.2]} 40... Rd8 {[%clk 0:00:16.1]} 41. Rxb6 {[%clk 0:00:27]}
41... Rxd7 {[%clk 0:00:16.2]} 42. Ke2 {[%clk 0:00:27.6]} 42... Ra7 {[%clk
0:00:16.4]} 43. Rb2 {[%clk 0:00:27.4]} 43... Kf7 {[%clk 0:00:17]} 44. Kd3 {[%clk
0:00:26.2]} 44... Kf6 {[%clk 0:00:16.1]} 45. Kc4 {[%clk 0:00:26.3]} 45... Kf5
{[%clk 0:00:16.2]} 46. Re2 {[%clk 0:00:25.2]} 46... g5 {[%clk 0:00:15.7]} 47.
Kb5 {[%clk 0:00:24.9]} 47... g4 {[%clk 0:00:15.5]} 48. a4 {[%clk 0:00:24.6]}
48... h5 {[%clk 0:00:14.8]} 49. a5 {[%clk 0:00:24.6]} 49... h4 {[%clk
0:00:15.1]} 50. a6 {[%clk 0:00:24.6]} 50... h3 {[%clk 0:00:13.7]} 51. g3 {[%clk
0:00:23.7]} 51... Rd7 {[%clk 0:00:13]} 52. Ra2 {[%clk 0:00:22.2]} 52... Rd5+
{[%clk 0:00:11.8]} 53. Kc6 {[%clk 0:00:20.3]} 53... Rd8 {[%clk 0:00:11.8]} 54.
a7 {[%clk 0:00:20.6]} 54... Ke4 {[%clk 0:00:11.8]} 55. a8=Q {[%clk 0:00:19.8]}
1-0

[Event "*** Titled Tuesday Blitz"]
[Site "Chess.com"]
[Date "2021.02.09"]
[Round "4"]
[White "SARGISMV"]
[Black "soumeow"]
[Result "1-0"]
[WhiteElo "2428"]
[BlackElo "2220"]
[TimeControl "180+1"]
[EndTime "10:40:05 PST"]
[Termination "SARGISMV won on time"]

1. Nf3 {[%clk 0:03:00.9]} 1... Nf6 {[%clk 0:02:54.2]} 2. c4 {[%clk 0:03:01.8]}
2... c5 {[%clk 0:02:49.9]} 3. g3 {[%clk 0:03:01.2]} 3... g6 {[%clk 0:02:46.2]}
4. Bg2 {[%clk 0:03:01.6]} 4... Bg7 {[%clk 0:02:46.1]} 5. O-O {[%clk 0:03:02.2]}
5... d5 {[%clk 0:02:44.5]} 6. Nc3 {[%clk 0:03:03.1]} 6... d4 {[%clk 0:02:43.4]}
7. Na4 {[%clk 0:03:03.4]} 7... Nbd7 {[%clk 0:02:32.5]} 8. a3 {[%clk 0:03:02.3]}
8... e5 {[%clk 0:02:03.5]} 9. d3 {[%clk 0:03:02.3]} 9... O-O {[%clk 0:02:01.6]}
10. b4 {[%clk 0:03:02.2]} 10... Qe7 {[%clk 0:02:01.2]} 11. Bd2 {[%clk
0:02:58.5]} 11... e4 {[%clk 0:01:56.2]} 12. Ng5 {[%clk 0:02:41.2]} 12... e3
{[%clk 0:01:48.2]} 13. fxe3 {[%clk 0:02:40.1]} 13... Ng4 {[%clk 0:01:39.3]} 14.
Ne4 {[%clk 0:02:37.6]} 14... Nxe3 {[%clk 0:01:31.5]} 15. Bxe3 {[%clk 0:02:33.9]}
15... dxe3 {[%clk 0:01:32.4]} 16. Naxc5 {[%clk 0:02:13.6]} 16... Nxc5 {[%clk
0:01:27.1]} 17. Nxc5 {[%clk 0:02:13.1]} 17... Bxa1 {[%clk 0:01:10.8]} 18. Qxa1
{[%clk 0:02:14]} 18... Bg4 {[%clk 0:01:07.1]} 19. Re1 {[%clk 0:01:53.6]} 19...
Rae8 {[%clk 0:00:56.8]} 20. Bxb7 {[%clk 0:01:51]} 20... Qe5 {[%clk 0:00:51]} 21.
Qxe5 {[%clk 0:01:47.1]} 21... Rxe5 {[%clk 0:00:50.6]} 22. Kg2 {[%clk 0:01:45]}
22... Rb8 {[%clk 0:00:27.6]} 23. Bd5 {[%clk 0:01:41.7]} 23... Re7 {[%clk
0:00:20.2]} 24. h3 {[%clk 0:01:41.2]} 24... Bc8 {[%clk 0:00:16.3]} 25. Rf1
{[%clk 0:01:40.1]} 25... Kg7 {[%clk 0:00:16.2]} 26. g4 {[%clk 0:01:30]} 26... f5
{[%clk 0:00:15.6]} 27. Kg3 {[%clk 0:01:30.4]} 27... a5 {[%clk 0:00:14.4]} 28. b5
{[%clk 0:01:29.3]} 28... Rb6 {[%clk 0:00:13.1]} 29. g5 {[%clk 0:01:22]} 29...
Rc7 {[%clk 0:00:12.7]} 30. Na4 {[%clk 0:01:16.2]} 30... Rd6 {[%clk 0:00:12.5]}
31. Nc3 {[%clk 0:01:15]} 31... Bb7 {[%clk 0:00:10.7]} 32. Kf4 {[%clk 0:01:12.4]}
32... Bxd5 {[%clk 0:00:10.3]} 33. Nxd5 {[%clk 0:01:13.3]} 33... Rc5 {[%clk
0:00:10.2]} 34. Nxe3 {[%clk 0:01:01.7]} 34... Rd4+ {[%clk 0:00:09.5]} 35. Kf3
{[%clk 0:01:01.8]} 35... Re5 {[%clk 0:00:09.7]} 36. Nd5 {[%clk 0:01:00.8]} 36...
Rh4 {[%clk 0:00:09.4]} 37. Rh1 {[%clk 0:00:53.3]} 37... h6 {[%clk 0:00:08.9]}
38. a4 {[%clk 0:00:53.6]} 38... hxg5 {[%clk 0:00:08.9]} 39. b6 {[%clk
0:00:52.9]} 39... g4+ {[%clk 0:00:08.8]} 40. Kg3 {[%clk 0:00:43]} 40... Rh8
{[%clk 0:00:08.7]} 41. e3 {[%clk 0:00:35.4]} 41... g5 {[%clk 0:00:08.3]} 42. Rh2
{[%clk 0:00:29.3]} 42... Ree8 {[%clk 0:00:06]} 43. hxg4 {[%clk 0:00:28.1]} 43...
f4+ {[%clk 0:00:06.3]} 44. exf4 {[%clk 0:00:23.9]} 44... gxf4+ {[%clk
0:00:06.6]} 45. Nxf4 {[%clk 0:00:24.4]} 45... Re3+ {[%clk 0:00:06]} 46. Kf2
{[%clk 0:00:24.7]} 46... Rxh2+ {[%clk 0:00:05.8]} 47. Kxe3 {[%clk 0:00:25]}
47... Rb2 {[%clk 0:00:06.1]} 48. c5 {[%clk 0:00:23.9]} 48... Kf7 {[%clk
0:00:05.6]} 49. g5 {[%clk 0:00:22.9]} 49... Ke7 {[%clk 0:00:05.2]} 50. g6 {[%clk
0:00:23.2]} 50... Kf6 {[%clk 0:00:05.6]} 51. d4 {[%clk 0:00:20.6]} 51... Rb3+
{[%clk 0:00:03.2]} 52. Ke4 {[%clk 0:00:20.8]} 1-0

[Event "*** Titled Tuesday Blitz"]
[Site "Chess.com"]
[Date "2021.02.09"]
[Round "4"]
[White "yuki_chess123"]
[Black "FontVella8"]
[Result "0-1"]
[WhiteElo "2299"]
[BlackElo "2576"]
[TimeControl "180+1"]
[EndTime "10:40:07 PST"]
[Termination "FontVella8 won by resignation"]

1. e4 {[%clk 0:02:55.2]} 1... c6 {[%clk 0:02:58.2]} 2. d3 {[%clk 0:02:55.1]}
2... d5 {[%clk 0:02:58.3]} 3. Nd2 {[%clk 0:02:55.9]} 3... g6 {[%clk 0:02:58]} 4.
Ngf3 {[%clk 0:02:56]} 4... Bg7 {[%clk 0:02:58.6]} 5. g3 {[%clk 0:02:56.7]} 5...
Bd7 {[%clk 0:02:57.9]} 6. c3 {[%clk 0:02:53.9]} 6... Qc8 {[%clk 0:02:56.2]} 7.
Qb3 {[%clk 0:02:52.8]} 7... Be6 {[%clk 0:02:50.1]} 8. Ng5 {[%clk 0:02:43.9]}
8... b6 {[%clk 0:01:30.5]} 9. Bg2 {[%clk 0:02:24.7]} 9... Na6 {[%clk 0:01:06]}
10. d4 {[%clk 0:02:16.2]} 10... Nc7 {[%clk 0:01:02.7]} 11. Nxe6 {[%clk
0:02:10.6]} 11... Qxe6 {[%clk 0:01:00]} 12. O-O {[%clk 0:02:09.7]} 12... Nf6
{[%clk 0:00:57.8]} 13. exd5 {[%clk 0:02:07.7]} 13... cxd5 {[%clk 0:00:54.4]} 14.
Nf3 {[%clk 0:01:51.3]} 14... O-O {[%clk 0:00:53.5]} 15. Bf4 {[%clk 0:01:50.9]}
15... Qc8 {[%clk 0:00:46]} 16. Qa3 {[%clk 0:01:34.4]} 16... Re8 {[%clk
0:00:41.6]} 17. Rfe1 {[%clk 0:01:32.8]} 17... Bf8 {[%clk 0:00:36]} 18. Qb3
{[%clk 0:01:27.5]} 18... Ne6 {[%clk 0:00:32]} 19. Be5 {[%clk 0:01:25.7]} 19...
Bg7 {[%clk 0:00:30.1]} 20. Bh3 {[%clk 0:01:20.2]} 20... Qc6 {[%clk 0:00:28.6]}
21. a4 {[%clk 0:01:07.4]} 21... Rac8 {[%clk 0:00:28.3]} 22. Qb5 {[%clk 0:01:05]}
22... Ne4 {[%clk 0:00:25.5]} 23. Qxc6 {[%clk 0:00:55.6]} 23... Rxc6 {[%clk
0:00:25.3]} 24. a5 {[%clk 0:00:54]} 24... f6 {[%clk 0:00:18.7]} 25. c4 {[%clk
0:00:19.8]} 25... N6g5 {[%clk 0:00:11.9]} 26. Nxg5 {[%clk 0:00:11.5]} 26... Nxg5
{[%clk 0:00:12.1]} 27. cxd5 {[%clk 0:00:11.6]} 27... Nxh3+ {[%clk 0:00:10.6]}
28. Kg2 {[%clk 0:00:11.6]} 28... Rc2 {[%clk 0:00:11]} 29. Kxh3 {[%clk
0:00:11.6]} 29... fxe5 {[%clk 0:00:11.3]} 30. dxe5 {[%clk 0:00:12.2]} 30... Rxf2
{[%clk 0:00:11.4]} 31. axb6 {[%clk 0:00:12.2]} 31... axb6 {[%clk 0:00:11.9]} 32.
Ra7 {[%clk 0:00:11.9]} 32... Rf5 {[%clk 0:00:12.1]} 33. d6 {[%clk 0:00:12]}
33... Rxe5 {[%clk 0:00:11]} 34. d7 {[%clk 0:00:11.6]} 34... Rd8 {[%clk
0:00:11.1]} 35. Rc1 {[%clk 0:00:11.5]} 35... Rc5 {[%clk 0:00:08.9]} 36. Rxc5
{[%clk 0:00:09.9]} 36... bxc5 {[%clk 0:00:09.1]} 37. Rc7 {[%clk 0:00:10.6]}
37... Bf6 {[%clk 0:00:08.8]} 38. Rc8 {[%clk 0:00:10.6]} 38... e6 {[%clk
0:00:08.5]} 39. Rc7 {[%clk 0:00:08.9]} 39... Kf7 {[%clk 0:00:07.6]} 40. b3
{[%clk 0:00:09.1]} 40... Ke7 {[%clk 0:00:07.9]} 41. Rxc5 {[%clk 0:00:09.7]}
41... Rxd7 {[%clk 0:00:08.3]} 42. Kg4 {[%clk 0:00:09.2]} 42... e5 {[%clk
0:00:08.1]} 43. h4 {[%clk 0:00:09.3]} 43... Ke6 {[%clk 0:00:08.2]} 44. Rb5
{[%clk 0:00:09.6]} 44... h5+ {[%clk 0:00:07]} 45. Kh3 {[%clk 0:00:08.9]} 45...
Kf5 {[%clk 0:00:07]} 46. Rb6 {[%clk 0:00:08.8]} 46... Rd3 {[%clk 0:00:06.7]} 47.
b4 {[%clk 0:00:09]} 47... e4 {[%clk 0:00:07]} 48. b5 {[%clk 0:00:08.2]} 48...
Be5 {[%clk 0:00:07.1]} 49. Rb7 {[%clk 0:00:07.7]} 49... Rxg3+ {[%clk 0:00:07.2]}
50. Kh2 {[%clk 0:00:07.3]} 50... Rg4+ {[%clk 0:00:07]} 51. Kh1 {[%clk
0:00:06.6]} 51... e3 {[%clk 0:00:07.6]} 0-1

[Event "*** Titled Tuesday Blitz"]
[Site "Chess.com"]
[Date "2021.02.09"]
[Round "4"]
[White "beto-betun"]
[Black "Nils_03"]
[Result "0-1"]
[WhiteElo "2180"]
[BlackElo "2331"]
[TimeControl "180+1"]
[EndTime "10:40:07 PST"]
[Termination "Nils_03 won by checkmate"]

1. d4 {[%clk 0:03:00.9]} 1... d5 {[%clk 0:02:59.5]} 2. Nf3 {[%clk 0:03:01.6]}
2... e6 {[%clk 0:02:59.5]} 3. g3 {[%clk 0:03:02.2]} 3... c6 {[%clk 0:02:56.3]}
4. Bg2 {[%clk 0:03:02.8]} 4... f5 {[%clk 0:02:56.8]} 5. O-O {[%clk 0:03:03.5]}
5... Nf6 {[%clk 0:02:57.3]} 6. c4 {[%clk 0:03:04.2]} 6... Bd6 {[%clk 0:02:56.3]}
7. cxd5 {[%clk 0:03:03.2]} 7... exd5 {[%clk 0:02:53.5]} 8. Nc3 {[%clk
0:03:03.8]} 8... O-O {[%clk 0:02:53.3]} 9. Ne5 {[%clk 0:02:59.8]} 9... Bxe5
{[%clk 0:02:46.5]} 10. dxe5 {[%clk 0:03:00.7]} 10... Ne4 {[%clk 0:02:47.2]} 11.
f3 {[%clk 0:02:59]} 11... Qb6+ {[%clk 0:02:44.7]} 12. Kh1 {[%clk 0:02:56.8]}
12... Nf2+ {[%clk 0:02:41.5]} 13. Rxf2 {[%clk 0:02:57.3]} 13... Qxf2 {[%clk
0:02:41.9]} 14. Qd3 {[%clk 0:02:50.6]} 14... Qc5 {[%clk 0:02:33.5]} 15. Be3
{[%clk 0:02:47.4]} 15... Qe7 {[%clk 0:02:33.5]} 16. f4 {[%clk 0:02:27.8]} 16...
Be6 {[%clk 0:02:33]} 17. Na4 {[%clk 0:02:27.4]} 17... Nd7 {[%clk 0:02:31.2]} 18.
Rc1 {[%clk 0:02:25.9]} 18... Rfc8 {[%clk 0:02:20.8]} 19. Nc5 {[%clk 0:02:25.7]}
19... b6 {[%clk 0:02:19.7]} 20. Nxe6 {[%clk 0:01:52.7]} 20... Qxe6 {[%clk
0:02:20.6]} 21. h3 {[%clk 0:01:46.8]} 21... h6 {[%clk 0:02:16.5]} 22. Kh2 {[%clk
0:01:42.1]} 22... Rd8 {[%clk 0:02:09.5]} 23. b4 {[%clk 0:01:39.9]} 23... Rac8
{[%clk 0:02:08.9]} 24. a4 {[%clk 0:01:37]} 24... Nf8 {[%clk 0:02:04.2]} 25. a5
{[%clk 0:01:31.6]} 25... bxa5 {[%clk 0:01:54.5]} 26. bxa5 {[%clk 0:01:32.5]}
26... d4 {[%clk 0:01:50]} 27. Bd2 {[%clk 0:01:28.8]} 27... c5 {[%clk 0:01:48.1]}
28. Qc4 {[%clk 0:01:16.7]} 28... Qxc4 {[%clk 0:01:30.9]} 29. Rxc4 {[%clk
0:01:17.6]} 29... Ne6 {[%clk 0:01:31.3]} 30. a6 {[%clk 0:01:13]} 30... Kf7
{[%clk 0:01:28.3]} 31. Bb7 {[%clk 0:01:11.8]} 31... Rb8 {[%clk 0:01:22.3]} 32.
Ba5 {[%clk 0:01:11.5]} 32... Rd7 {[%clk 0:01:18.3]} 33. Kg2 {[%clk 0:01:06.9]}
33... Rbxb7 {[%clk 0:01:11.7]} 34. axb7 {[%clk 0:01:07.8]} 34... Rxb7 {[%clk
0:01:12.3]} 35. Kf2 {[%clk 0:01:03.3]} 35... Ke7 {[%clk 0:01:06.6]} 36. Rc2
{[%clk 0:00:48.2]} 36... Kd7 {[%clk 0:01:05.3]} 37. e3 {[%clk 0:00:44.7]} 37...
Kc6 {[%clk 0:00:57.5]} 38. exd4 {[%clk 0:00:42.6]} 38... Nxd4 {[%clk 0:00:58.4]}
39. Ra2 {[%clk 0:00:26]} 39... Kd5 {[%clk 0:00:57.6]} 40. Bd8 {[%clk 0:00:22.3]}
40... c4 {[%clk 0:00:51.4]} 41. g4 {[%clk 0:00:21.5]} 41... c3 {[%clk
0:00:47.7]} 42. Ba5 {[%clk 0:00:19.7]} 42... c2 {[%clk 0:00:46.6]} 43. Bd2
{[%clk 0:00:20.3]} 43... Rb3 {[%clk 0:00:22.3]} 44. gxf5 {[%clk 0:00:19.1]}
44... Rf3+ {[%clk 0:00:20.1]} 45. Ke1 {[%clk 0:00:17.7]} 45... Rxh3 {[%clk
0:00:17.6]} 46. Rxa7 {[%clk 0:00:16]} 46... Nxf5 {[%clk 0:00:11.6]} 47. e6
{[%clk 0:00:15.1]} 47... Kxe6 {[%clk 0:00:11.5]} 48. Bc1 {[%clk 0:00:14.8]}
48... Nd4 {[%clk 0:00:08]} 49. Kd2 {[%clk 0:00:15.7]} 49... Rh2+ {[%clk
0:00:07.5]} 50. Kc3 {[%clk 0:00:15.7]} 50... Nb5+ {[%clk 0:00:05.4]} 51. Kb4
{[%clk 0:00:15.9]} 51... Nxa7 {[%clk 0:00:06.3]} 52. Ka5 {[%clk 0:00:15.6]}
52... Nc6+ {[%clk 0:00:06.4]} 53. Kb6 {[%clk 0:00:16.5]} 53... Ne7 {[%clk
0:00:07.2]} 54. f5+ {[%clk 0:00:16.7]} 54... Kxf5 {[%clk 0:00:07.5]} 55. Kc5
{[%clk 0:00:17.2]} 55... Rh1 {[%clk 0:00:07.4]} 56. Kd6 {[%clk 0:00:18.1]} 56...
Rxc1 {[%clk 0:00:06.5]} 57. Kxe7 {[%clk 0:00:19]} 57... Rd1 {[%clk 0:00:07.1]}
58. Kf7 {[%clk 0:00:19.4]} 58... c1=Q {[%clk 0:00:06.9]} 59. Kxg7 {[%clk
0:00:20.3]} 59... Qc7+ {[%clk 0:00:06.9]} 60. Kh8 {[%clk 0:00:19.7]} 60... Rd8#
{[%clk 0:00:07]} 0-1